fUSD/lending_fUSD_20260423
["ID","MTS","AMOUNT","RATE_DAILY","PERIOD"]
[421015016,1776927847880,-500.0,0.00044198,120]
[421015017,1776927847911,-2000.0,0.00044198,120]
[421015018,1776927847941,-500.0,0.00044198,120]
[421015019,1776927847973,-2000.0,0.00044198,120]
[421015020,1776927848006,-500.0,0.00044198,120]
[421015021,1776927848037,-2000.0,0.00044198,120]
[421015022,1776927848068,-500.0,0.00044198,120]
[421015023,1776927848099,-2000.0,0.00044198,120]
[421015024,1776927848129,-500.0,0.00044198,120]
[421015025,1776927848159,-2000.0,0.00044198,120]
[421015026,1776927848190,-500.0,0.00044198,120]
[421015027,1776927848222,-1598.21731321,0.00044198,120]
[421015028,1776927848252,-500.0,0.00044198,120]
[421015029,1776927848282,-445.3650796,0.00044198,120]
[421015030,1776927848312,-14814.61,0.00044198,120]
[421015031,1776927848343,-170.0,0.00044198,120]
[421015032,1776927848374,-176.29,0.00044198,120]
[421015033,1776927848405,-182.81273,0.00044198,120]
[421015034,1776927848436,-189.57680101,0.00044198,120]
[421015035,1776927848471,-50000.0,0.00044198,120]
[421015036,1776927848500,-196.59114265,0.00044198,120]
[421015037,1776927851157,27958.02108978,0.00044198,120]
[421015038,1776927851201,59678.61424773,0.00044198,120]
[421015039,1776927851379,39306.88029784,0.00044198,120]
[421015040,1776927851639,203.86501493,0.00044198,120]
[421015041,1776927851702,211.40802048,0.00044198,120]
[421015042,1776927851871,219.23011724,0.00044198,120]
[421015043,1776927851946,219.23011724,0.00044198,120]
[421015044,1776927852770,50000.0,0.00044198,120]
[421015045,1776927853829,902.02217018,0.00044198,120]
[421015046,1776927855183,50000.0,0.00044198,120]
[421015047,1776927855724,1710.0,0.00044198,120]
[421015048,1776927855786,50000.0,0.00044198,120]
[421015049,1776927855909,1216.0,0.00044198,120]
[421015050,1776927856189,5000.0,0.00044198,120]
[421015051,1776927856236,5000.0,0.00044198,120]
[421015052,1776927856273,1500.0,0.00044198,120]
[421015053,1776927856339,5000.0,0.00044198,120]
[421015054,1776927856419,3201.0,0.00044198,120]
[421015055,1776927856461,1555.5,0.00044198,120]
[421015056,1776927856522,1613.0535,0.00044198,120]
[421015057,1776927856717,1672.7364795,0.00044198,120]
[421015058,1776927857406,1734.62772924,0.00044198,120]
[421015059,1776927858232,1798.80895522,0.00044198,120]
[421015060,1776927859073,1865.36488657,0.00044198,120]
[421015061,1776927859299,2595.0,0.00044198,120]
[421015062,1776927859525,1934.38338737,0.00044198,120]
[421015063,1776927866176,50000.0,0.00044198,120]
[421015065,1776927878477,1176.56,0.00044198,120]
[421015066,1776927882366,16367.9,0.00044198,120]
[421015067,1776927887971,151.4499815,0.00044198,120]
[421015068,1776927896897,500.0,0.00044198,120]
[421015069,1776927897160,500.0,0.00044198,120]
[421015070,1776927897617,500.0,0.00044198,120]
[421015071,1776927897681,500.0,0.00044198,120]
[421015072,1776927900137,500.0,0.00044198,120]
[421015073,1776927900224,500.0,0.00044198,120]
[421015074,1776927900297,500.0,0.00044198,120]
[421015075,1776927900365,500.0,0.00044198,120]
[421015076,1776927900428,500.0,0.00044198,120]
[421015077,1776927900503,634.49759065,0.00044198,120]
[421015078,1776927905423,150.0,6.288e-05,2]
[421015079,1776927905519,150.0,6.637e-05,2]
[421015080,1776927905653,150.0,6.288e-05,2]
[421015081,1776927905705,150.0,6.427e-05,2]
[421015082,1776927905769,150.0,6.567e-05,2]
[421015083,1776927909273,500.0,0.00044198,120]
[421015084,1776927909342,418.15304292,0.00044198,120]
[421015085,1776927909376,150.00000001,6.288e-05,2]
[421015086,1776927909515,6888.0,0.00044198,120]
[421015087,1776927909550,500.0,0.00044198,120]
[421015088,1776927909588,500.0,0.00044198,120]
[421015089,1776927909622,200.0,0.00044198,120]
[421015090,1776927909654,220.0,0.00044198,120]
[421015091,1776927909793,151.0,0.00044198,120]
[421015092,1776927909858,518.5,0.00044198,120]
[421015093,1776927910068,500.0,0.00044198,120]
[421015094,1776927910115,500.0,0.00044198,120]
[421015095,1776927913355,200.0,0.00044198,120]
[421015096,1776927913410,220.0,0.00044198,120]
[421015097,1776927913492,520.0,0.00044198,120]
[421015098,1776927913552,156.587,0.00044198,120]
[421015099,1776927913590,537.6845,0.00044198,120]
[421015100,1776927914716,7142.856,0.00044198,120]
[421015101,1776927914930,500.0,0.00044198,120]
[421015102,1776927914971,500.0,0.00044198,120]
[421015103,1776927915007,200.0,0.00044198,120]
[421015104,1776927915041,220.0,0.00044198,120]
[421015105,1776927915084,539.24,0.00044198,120]
[421015106,1776927915142,162.380719,0.00044198,120]
[421015107,1776927915185,557.5788265,0.00044198,120]
[421015108,1776927915231,7407.141672,0.00044198,120]
[421015109,1776927915418,220.0,0.00044198,120]
[421015110,1776927915457,200.0,0.00044198,120]
[421015111,1776927915500,559.19188,0.00044198,120]
[421015112,1776927915568,168.3888056,0.00044198,120]
[421015113,1776927915603,500.0,0.00044198,120]
[421015114,1776927915639,578.20924308,0.00044198,120]
[421015115,1776927915680,7681.20591386,0.00044198,120]
[421015116,1776927915715,500.0,0.00044198,120]
[421015117,1776927915754,150.0,6.288e-05,2]
[421015118,1776927915802,200.0,0.00044198,120]
[421015119,1776927915839,150.0,6.288e-05,2]
[421015120,1776927915875,579.88197956,0.00044198,120]
[421015121,1776927915909,150.0,6.404e-05,2]
[421015122,1776927916043,150.0,6.521e-05,2]
[421015123,1776927916096,174.61919141,0.00044198,120]
[421015124,1776927916127,150.0,6.637e-05,2]
[421015125,1776927916168,500.0,0.00044198,120]
[421015126,1776927916212,7965.41053268,0.00044198,120]
[421015127,1776927916252,599.60298507,0.00044198,120]
[421015128,1776927916288,500.0,0.00044198,120]
[421015129,1776927916344,220.0,0.00044198,120]
[421015130,1776927916442,200.0,0.00044198,120]
[421015131,1776927916509,601.3376128,0.00044198,120]
[421015132,1776927916591,500.0,0.00044198,120]
[421015133,1776927916627,181.08010149,0.00044198,120]
[421015134,1776927916669,8260.13072239,0.00044198,120]
[421015135,1776927916705,621.78829552,0.00044198,120]
[421015136,1776927916749,500.0,0.00044198,120]
[421015137,1776927916789,220.0,0.00044198,120]
[421015138,1776927916857,200.0,0.00044198,120]
[421015139,1776927916904,623.58710448,0.00044198,120]
[421015140,1776927917012,187.78006525,0.00044198,120]
[421015141,1776927917074,500.0,0.00044198,120]
[421015142,1776927917121,644.79446246,0.00044198,120]
[421015143,1776927917164,500.0,0.00044198,120]
[421015144,1776927917212,8565.75555911,0.00044198,120]
[421015145,1776927917284,220.0,0.00044198,120]
[421015146,1776927917357,200.0,0.00044198,120]
[421015147,1776927917410,646.65982734,0.00044198,120]
[421015148,1776927917531,194.72792766,0.00044198,120]
[421015149,1776927917570,500.0,0.00044198,120]
[421015150,1776927917622,644.79446246,0.00044198,120]
[421015151,1776927917685,500.0,0.00044198,120]
[421015152,1776927917722,8882.6885148,0.00044198,120]
[421015153,1776927917780,220.0,0.00044198,120]
[421015154,1776927917882,200.0,0.00044198,120]
[421015155,1776927917951,670.58624095,0.00044198,120]
[421015156,1776927918461,201.93286099,0.00044198,120]
[421015157,1776927918504,500.0,0.00044198,120]
[421015158,1776927918545,9211.34798985,0.00044198,120]
[421015159,1776927918582,500.0,0.00044198,120]
[421015160,1776927918643,200.0,0.00044198,120]
[421015161,1776927918691,695.39793187,0.00044198,120]
[421015162,1776927918777,500.0,0.00044198,120]
[421015163,1776927918816,209.40437684,0.00044198,120]
[421015164,1776927918864,500.0,0.00044198,120]
[421015165,1776927918914,517.0,0.00044198,120]
[421015166,1776927918948,721.12765535,0.00044198,120]
[421015167,1776927918986,200.0,0.00044198,120]
[421015168,1776927919074,217.15233878,0.00044198,120]
[421015169,1776927919184,500.0,0.00044198,120]
[421015170,1776927919669,517.0,0.00044198,120]
[421015171,1776927919704,200.0,0.00044198,120]
[421015172,1776927919743,747.8093786,0.00044198,120]
[421015173,1776927919819,225.18697532,0.00044198,120]
[421015174,1776927919859,500.0,0.00044198,120]
[421015175,1776927919912,517.0,0.00044198,120]
[421015176,1776927919971,200.0,0.00044198,120]
[421015177,1776927920031,775.47832561,0.00044198,120]
[421015178,1776927920074,150.0,6.521e-05,2]
[421015179,1776927920138,233.51889341,0.00044198,120]
[421015180,1776927920198,500.0,0.00044198,120]
[421015181,1776927920305,517.0,0.00044198,120]
[421015182,1776927920369,200.0,0.00044198,120]
[421015183,1776927920407,804.17102365,0.00044198,120]
[421015184,1776927920564,150.0,6.288e-05,2]
[421015185,1776927920604,242.15909246,0.00044198,120]
[421015186,1776927920639,150.0,6.521e-05,2]
[421015187,1776927920709,500.0,0.00044198,120]
[421015188,1776927920763,517.0,0.00044198,120]
[421015189,1776927920810,833.92535153,0.00044198,120]
[421015190,1776927920845,200.0,0.00044198,120]
[421015191,1776927921026,382.89436095,0.00044198,120]
[421015192,1776927921078,500.0,0.00044198,120]
[421015193,1776927921136,517.0,0.00044198,120]
[421015194,1776927921170,200.0,0.00044198,120]
[421015195,1776927921220,251.11897888,0.00044198,120]
[421015196,1776927921256,864.78058953,0.00044198,120]
[421015197,1776927921351,500.0,0.00044198,120]
[421015198,1776927921455,517.0,0.00044198,120]
[421015199,1776927921496,150.0,6.288e-05,2]
[421015200,1776927921537,200.0,0.00044198,120]
[421015201,1776927922111,260.4103811,0.00044198,120]
[421015202,1776927922250,500.0,0.00044198,120]
[421015203,1776927922294,517.0,0.00044198,120]
[421015204,1776927922337,200.0,0.00044198,120]
[421015205,1776927922405,270.0455652,0.00044198,120]
[421015206,1776927922525,500.0,0.00044198,120]
[421015207,1776927922607,517.0,0.00044198,120]
[421015208,1776927922646,200.0,0.00044198,120]
[421015209,1776927922692,160.0,0.00044198,120]
[421015210,1776927922729,280.03725112,0.00044198,120]
[421015211,1776927922765,151.0,0.00044198,120]
[421015212,1776927922842,500.0,0.00044198,120]
[421015213,1776927922897,290.39862941,0.00044198,120]
[421015214,1776927922948,517.0,0.00044198,120]
[421015215,1776927922988,156.587,0.00044198,120]
[421015216,1776927923025,151.0,0.00044198,120]
[421015217,1776927923061,200.0,0.00044198,120]
[421015218,1776927923101,160.0,0.00044198,120]
[421015219,1776927923141,500.0,0.00044198,120]
[421015220,1776927923199,290.39862941,0.00044198,120]
[421015221,1776927923242,517.0,0.00044198,120]
[421015222,1776927923277,162.380719,0.00044198,120]
[421015223,1776927925400,156.587,0.00044198,120]
[421015224,1776927925437,200.0,0.00044198,120]
[421015225,1776927925476,160.0,0.00044198,120]
[421015226,1776927925773,168.3888056,0.00044198,120]
[421015227,1776927925815,517.0,0.00044198,120]
[421015228,1776927925849,200.0,0.00044198,120]
[421015229,1776927925892,160.0,0.00044198,120]
[421015230,1776927925935,162.380719,0.00044198,120]
[421015231,1776927925981,174.61919141,0.00044198,120]
[421015232,1776927926155,517.0,0.00044198,120]
[421015233,1776927926189,200.0,0.00044198,120]
[421015234,1776927926234,160.0,0.00044198,120]
[421015235,1776927926273,168.3888056,0.00044198,120]
[421015236,1776927926335,181.08010149,0.00044198,120]
[421015237,1776927926369,517.0,0.00044198,120]
[421015238,1776927926412,200.0,0.00044198,120]
[421015239,1776927926451,160.0,0.00044198,120]
[421015240,1776927926484,174.61919141,0.00044198,120]
[421015241,1776927926521,24680.0,0.00044198,120]
[421015242,1776927926569,621.86658992,0.00044198,120]
[421015243,1776927926603,187.78006525,0.00044198,120]
[421015244,1776927926636,517.0,0.00044198,120]
[421015245,1776927926692,200.0,0.00044198,120]
[421015246,1776927926739,160.0,0.00044198,120]
[421015247,1776927926775,181.08010149,0.00044198,120]
[421015248,1776927926808,24680.0,0.00044198,120]
[421015249,1776927926838,150.0,6.288e-05,2]
[421015250,1776927926892,150.0,6.288e-05,2]
[421015251,1776927926964,150.0,6.309e-05,2]
[421015252,1776927927001,194.72792766,0.00044198,120]
[421015253,1776927927037,150.0,6.33e-05,2]
[421015254,1776927927071,517.0,0.00044198,120]
[421015255,1776927927116,150.0,6.351e-05,2]
[421015256,1776927927150,200.0,0.00044198,120]
[421015257,1776927927187,150.0,6.372e-05,2]
[421015258,1776927927218,150.0,6.394e-05,2]
[421015259,1776927927252,160.0,0.00044198,120]
[421015260,1776927927285,187.78006525,0.00044198,120]
[421015261,1776927927317,150.0,6.415e-05,2]
[421015262,1776927927351,24680.0,0.00044198,120]
[421015263,1776927927390,150.0,6.436e-05,2]
[421015264,1776927927421,150.0,6.457e-05,2]
[421015265,1776927927460,150.0,6.478e-05,2]
[421015266,1776927927512,150.0,6.499e-05,2]
[421015267,1776927927549,194.72792766,0.00044198,120]
[421015268,1776927927985,517.0,0.00044198,120]
[421015269,1776927928027,150.0,6.521e-05,2]
[421015270,1776927928062,200.0,0.00044198,120]
[421015271,1776927928094,150.0,6.542e-05,2]
[421015272,1776927928141,150.0,6.563e-05,2]
[421015273,1776927928176,160.0,0.00044198,120]
[421015274,1776927928210,194.72792766,0.00044198,120]
[421015275,1776927928247,24680.0,0.00044198,120]
[421015276,1776927928278,150.0,6.584e-05,2]
[421015277,1776927928312,150.0,6.605e-05,2]
[421015278,1776927928356,150.0,6.626e-05,2]
[421015279,1776927928392,150.0,6.648e-05,2]
[421015280,1776927928479,150.0,6.669e-05,2]
[421015281,1776927928546,517.0,0.00044198,120]
[421015282,1776927928649,24680.0,0.00044198,120]
[421015283,1776927928809,517.0,0.00044198,120]
[421015284,1776927928906,24680.0,0.00044198,120]
[421015285,1776927929138,517.0,0.00044198,120]
[421015286,1776927929169,150.0,6.288e-05,2]
[421015287,1776927929202,150.0,6.427e-05,2]
[421015288,1776927929247,150.0,6.567e-05,2]
[421015289,1776927929407,24680.0,0.00044198,120]
[421015290,1776927929583,24680.0,0.00044198,120]
[421015291,1776927929749,24680.0,0.00044198,120]
[421015292,1776927929944,24680.0,0.00044198,120]
[421015293,1776927930024,201.93286099,0.00044198,120]
[421015294,1776927930399,24680.0,0.00044198,120]
[421015295,1776927930585,201.93286099,0.00044198,120]
[421015296,1776927930632,10000.0,0.00044198,120]
[421015297,1776927931040,24680.0,0.00044198,120]
[421015298,1776927931209,9194.34479997,0.00044198,120]
[421015299,1776927931655,10000.0,0.00044198,120]
[421015300,1776927931917,251.0,0.00044198,120]
[421015301,1776927932042,24680.0,0.00044198,120]
[421015302,1776927932181,151.0,0.00044198,120]
[421015303,1776927932264,10000.0,0.00044198,120]
[421015304,1776927932594,260.287,0.00044198,120]
[421015305,1776927932658,24680.0,0.00044198,120]
[421015306,1776927932785,151.0,0.00044198,120]
[421015307,1776927932872,10000.0,0.00044198,120]
[421015308,1776927933045,1500.0,0.00044198,120]
[421015309,1776927933566,260.287,0.00044198,120]
[421015310,1776927933661,24680.0,0.00044198,120]
[421015311,1776927933739,151.0,0.00044198,120]
[421015312,1776927933924,24680.0,0.00044198,120]
[421015313,1776927934072,151.0,0.00044198,120]
[421015314,1776927934769,500.0,0.00044198,120]
[421015315,1776927934918,24680.0,0.00044198,120]
[421015316,1776927935151,151.0,0.00044198,120]
[421015317,1776927938115,500.0,0.00044198,120]
[421015318,1776927938193,24680.0,0.00044198,120]
[421015319,1776927938315,500.0,0.00044198,120]
[421015320,1776927938400,24680.0,0.00044198,120]
[421015321,1776927938435,458.90777171,0.00044198,120]
[421015322,1776927938531,500.0,0.00044198,120]
[421015323,1776927938582,1526.8788,0.00044198,120]
[421015324,1776927938669,1526.8788,0.00044198,120]
[421015325,1776927938825,500.0,0.00044198,120]
[421015326,1776927938871,1526.8788,0.00044198,120]
[421015327,1776927939166,1526.8788,0.00044198,120]
[421015328,1776927939225,1526.8788,0.00044198,120]
[421015329,1776927939280,500.0,0.00044198,120]
[421015330,1776927939559,1526.8788,0.00044198,120]
[421015331,1776927940276,500.0,0.00044198,120]
[421015332,1776927940377,1526.8788,0.00044198,120]
[421015333,1776927940587,1526.8788,0.00044198,120]
[421015334,1776927940648,500.0,0.00044198,120]
[421015335,1776927940694,992.4712,0.00044198,120]
[421015336,1776927940747,1526.8788,0.00044198,120]
[421015337,1776927940809,151.0,0.00044198,120]
[421015338,1776927940844,992.4712,0.00044198,120]
[421015339,1776927940891,1526.8788,0.00044198,120]
[421015340,1776927940946,500.0,0.00044198,120]
[421015341,1776927940982,992.4712,0.00044198,120]
[421015342,1776927941037,1526.8788,0.00044198,120]
[421015343,1776927941081,151.0,0.00044198,120]
[421015344,1776927941136,992.4712,0.00044198,120]
[421015345,1776927941183,1526.8788,0.00044198,120]
[421015346,1776927941255,992.4712,0.00044198,120]
[421015347,1776927941295,500.0,0.00044198,120]
[421015348,1776927941335,1526.8788,0.00044198,120]
[421015349,1776927941389,156.587,0.00044198,120]
[421015350,1776927941441,992.4712,0.00044198,120]
[421015351,1776927941490,1526.8788,0.00044198,120]
[421015352,1776927941597,992.4712,0.00044198,120]
[421015353,1776927941754,500.0,0.00044198,120]
[421015354,1776927941791,1526.8788,0.00044198,120]
[421015355,1776927941847,162.380719,0.00044198,120]
[421015356,1776927942081,152.0,0.00044198,120]
[421015357,1776927942228,1294.48096035,0.00044198,120]
[421015358,1776927942269,168.3888056,0.00044198,120]
[421015359,1776927942316,3504111.00973145,0.00044198,120]
[421015360,1776927942392,152.0,0.00044198,120]
[421015361,1776927942459,151.0,0.00044198,120]
[421015362,1776927942498,174.61919141,0.00044198,120]
[421015363,1776927942538,200.0,0.00044198,120]
[421015364,1776927942598,152.0,0.00044198,120]
[421015365,1776927942724,151.0,0.00044198,120]
[421015366,1776927942771,181.08010149,0.00044198,120]
[421015367,1776927942859,207.4,0.00044198,120]
[421015368,1776927942991,152.0,0.00044198,120]
[421015369,1776927943120,151.0,0.00044198,120]
[421015370,1776927943374,215.0738,0.00044198,120]
[421015371,1776927943617,152.0,0.00044198,120]
[421015372,1776927943724,187.78006525,0.00044198,120]
[421015373,1776927943763,151.0,0.00044198,120]
[421015374,1776927943812,151.0,0.00044198,120]
[421015375,1776927943967,223.0315306,0.00044198,120]
[421015376,1776927944635,152.0,0.00044198,120]
[421015377,1776927944682,194.72792766,0.00044198,120]
[421015378,1776927944719,151.0,0.00044198,120]
[421015379,1776927944775,231.28369723,0.00044198,120]
[421015380,1776927944825,5000.0,0.00044198,120]
[421015381,1776927944861,152.0,0.00044198,120]
[421015382,1776927944901,194.72792766,0.00044198,120]
[421015383,1776927944947,151.0,0.00044198,120]
[421015384,1776927945204,239.84119403,0.00044198,120]
[421015385,1776927945417,152.0,0.00044198,120]
[421015386,1776927945463,5000.0,0.00044198,120]
[421015387,1776927945522,151.0,0.00044198,120]
[421015388,1776927945816,248.71531821,0.00044198,120]
[421015389,1776927946034,152.0,0.00044198,120]
[421015390,1776927946117,151.0,0.00044198,120]
[421015391,1776927946155,5000.0,0.00044198,120]
[421015392,1776927946453,257.91778498,0.00044198,120]
[421015393,1776927946728,151.0,0.00044198,120]
[421015394,1776927946766,5000.0,0.00044198,120]
[421015395,1776927947031,267.46074303,0.00044198,120]
[421015396,1776927947372,151.0,0.00044198,120]
[421015397,1776927947667,277.35679052,0.00044198,120]
[421015398,1776927950486,151.0,0.00044198,120]
[421015399,1776927950566,287.61899177,0.00044198,120]
[421015400,1776927950630,151.0,0.00044198,120]
[421015401,1776927950776,298.26089446,0.00044198,120]
[421015402,1776927950845,151.0,0.00044198,120]
[421015403,1776927950942,309.29654756,0.00044198,120]
[421015404,1776927950998,151.0,0.00044198,120]
[421015405,1776927951078,309.29654756,0.00044198,120]
[421015406,1776927951128,151.0,0.00044198,120]
[421015407,1776927951316,151.0,0.00044198,120]
[421015408,1776927951930,151.0,0.00044198,120]
[421015409,1776927952567,151.0,0.00044198,120]
[421015410,1776927952680,1000.0,0.00044198,120]
[421015411,1776927953210,151.0,0.00044198,120]
[421015412,1776927953332,1000.0,0.00044198,120]
[421015413,1776927953840,151.0,0.00044198,120]
[421015414,1776927953919,1000.0,0.00044198,120]
[421015415,1776927954474,151.0,0.00044198,120]
[421015416,1776927954537,1000.0,0.00044198,120]
[421015417,1776927955100,151.0,0.00044198,120]
[421015418,1776927955142,1000.0,0.00044198,120]
[421015419,1776927955712,151.0,0.00044198,120]
[421015420,1776927955752,1000.0,0.00044198,120]
[421015421,1776927956401,1000.0,0.00044198,120]
[421015422,1776927957530,1000.0,0.00044198,120]
[421015423,1776927958193,1000.0,0.00044198,120]
[421015424,1776927958827,1000.0,0.00044198,120]
[421015425,1776927958926,620.0,0.00044198,120]
[421015426,1776927959548,642.94,0.00044198,120]
[421015427,1776927960163,666.72878,0.00044198,120]
[421015428,1776927962657,691.39774486,0.00044198,120]
[421015429,1776927962962,691.39774486,0.00044198,120]
[421015430,1776927963065,362.94,0.00044198,120]
[421015431,1776927964630,151.0,0.00044198,120]
[421015432,1776927965293,151.0,0.00044198,120]
[421015433,1776927965902,151.0,0.00044198,120]
[421015434,1776927966531,151.0,0.00044198,120]
[421015435,1776927967185,151.0,0.00044198,120]
[421015436,1776927967809,151.0,0.00044198,120]
[421015437,1776927968450,151.0,0.00044198,120]
[421015438,1776927969086,151.0,0.00044198,120]
[421015439,1776927969711,151.0,0.00044198,120]
[421015440,1776927970332,151.0,0.00044198,120]
[421015441,1776927970927,151.0,6.337e-05,2]
[421015442,1776927979276,500.0,0.00044198,120]
[421015443,1776927979542,187.0971299,0.00044198,120]
[421015444,1776928025465,151.0,0.00044126,120]
[421015445,1776928025527,520.0,0.00044126,120]
[421015446,1776928030084,200.0,0.00044126,120]
[421015447,1776928030677,200.0,0.00044126,120]
[421015448,1776928030725,100647.36862202,0.00044126,120]
[421015449,1776928030907,500.0,0.00044126,120]
[421015450,1776928031292,200.0,0.00044126,120]
[421015451,1776928031499,500.0,0.00044126,120]
[421015452,1776928032266,500.0,0.00044126,120]
[421015453,1776928032724,3487.36630642,0.00044126,120]
[421015454,1776928032870,500.0,0.00044126,120]
[421015455,1776928033467,500.0,0.00044126,120]
[421015456,1776928034054,500.0,0.00044126,120]
[421015457,1776928036518,500.0,0.00044126,120]
[421015458,1776928036675,1030.0,0.00044126,120]
[421015459,1776928036833,156.587,0.00044126,120]
[421015460,1776928036883,1068.11,0.00044126,120]
[421015461,1776928036959,151.0,0.00044126,120]
[421015462,1776928036996,162.380719,0.00044126,120]
[421015463,1776928037053,1107.63007,0.00044126,120]
[421015464,1776928037202,151.0,0.00044126,120]
[421015465,1776928037236,168.3888056,0.00044126,120]
[421015466,1776928037285,1148.61238259,0.00044126,120]
[421015467,1776928037342,702767.82124394,0.00044126,120]
[421015468,1776928037481,151.0,0.00044126,120]
[421015469,1776928037566,168.3888056,0.00044126,120]
[421015470,1776928037665,1191.11104075,0.00044126,120]
[421015471,1776928037736,500.0,0.00044126,120]
[421015472,1776928038113,151.0,0.00044126,120]
[421015473,1776928038252,1235.18214925,0.00044126,120]
[421015474,1776928038374,518.5,0.00044126,120]
[421015475,1776928038721,151.0,0.00044126,120]
[421015476,1776928038839,1280.88388878,0.00044126,120]
[421015477,1776928038996,537.6845,0.00044126,120]
[421015478,1776928039342,151.0,0.00044126,120]
[421015479,1776928039481,1328.27659266,0.00044126,120]
[421015480,1776928039608,557.5788265,0.00044126,120]
[421015481,1776928039931,151.0,0.00044126,120]
[421015482,1776928040099,1377.42282659,0.00044126,120]
[421015483,1776928040670,578.20924308,0.00044126,120]
[421015484,1776928040749,151.0,0.00044126,120]
[421015485,1776928040796,500.0,0.00044126,120]
[421015486,1776928040858,1428.38747117,0.00044126,120]
[421015487,1776928040909,599.60298507,0.00044126,120]
[421015488,1776928041139,151.0,0.00044126,120]
[421015489,1776928041183,500.0,0.00044126,120]
[421015490,1776928041329,1481.23780761,0.00044126,120]
[421015491,1776928041501,621.78829552,0.00044126,120]
[421015492,1776928041756,151.0,0.00044126,120]
[421015493,1776928041818,500.0,0.00044126,120]
[421015494,1776928042001,1536.04360649,0.00044126,120]
[421015495,1776928042168,644.79446246,0.00044126,120]
[421015496,1776928042356,151.0,0.00044126,120]
[421015497,1776928042569,1592.87721993,0.00044126,120]
[421015498,1776928042740,668.65185757,0.00044126,120]
[421015499,1776928042874,500.0,0.00044126,120]
[421015500,1776928042974,151.0,0.00044126,120]
[421015501,1776928043358,693.3919763,0.00044126,120]
[421015502,1776928043562,500.0,0.00044126,120]
[421015503,1776928043746,151.0,0.00044126,120]
[421015504,1776928044010,719.04747942,0.00044126,120]
[421015505,1776928044186,500.0,0.00044126,120]
[421015506,1776928044406,151.0,0.00044126,120]
[421015507,1776928044626,745.65223616,0.00044126,120]
[421015508,1776928044997,151.0,0.00044126,120]
[421015509,1776928045295,773.2413689,0.00044126,120]
[421015510,1776928045655,151.0,0.00044126,120]
[421015511,1776928045748,500.0,0.00044126,120]
[421015512,1776928045917,773.2413689,0.00044126,120]
[421015513,1776928046258,151.0,0.00044126,120]
[421015514,1776928049034,250.0,0.00044126,120]
[421015515,1776928049591,151.0,0.00044126,120]
[421015516,1776928049797,1651.81367706,0.00044126,120]